[Event "Late-Titled-Tuesday-Blitz-January-16-2024"]
[Site "Chess.com"]
[Date "2024.01.16"]
[Round "3"]
[White "Balla_Tamas"]
[Black "karinachess1"]
[Result "1/2-1/2"]
[WhiteElo "2462"]
[BlackElo "2621"]
[TimeControl "180+1"]
[EndTime "14:30:08 PST"]
[Termination "Game drawn - timeout vs insufficient material"]

1. e4 {[%clk 0:03:00.9]} 1... e5 {[%clk 0:03:00]} 2. Nf3 {[%clk 0:03:01]} 2...
Nc6 {[%clk 0:03:00.1]} 3. d4 {[%clk 0:03:01.7]} 3... exd4 {[%clk 0:03:00.2]} 4.
Nxd4 {[%clk 0:03:02.6]} 4... Bc5 {[%clk 0:03:00.2]} 5. Nb3 {[%clk 0:03:02.9]}
5... Bb6 {[%clk 0:03:00.5]} 6. Nc3 {[%clk 0:03:03.7]} 6... Nf6 {[%clk
0:03:00.6]} 7. Qe2 {[%clk 0:03:04.2]} 7... O-O {[%clk 0:03:00.4]} 8. Be3 {[%clk
0:03:04.9]} 8... d5 {[%clk 0:02:59.8]} 9. O-O-O {[%clk 0:02:54.3]} 9... d4
{[%clk 0:03:00]} 10. Qe1 {[%clk 0:02:45.5]} 10... Be6 {[%clk 0:02:47.1]} 11. Bb5
{[%clk 0:02:43.3]} 11... Bxb3 {[%clk 0:02:28.8]} 12. axb3 {[%clk 0:02:36.2]}
12... Nb4 {[%clk 0:02:29]} 13. Ne2 {[%clk 0:02:09.8]} 13... c5 {[%clk
0:02:08.5]} 14. Nxd4 {[%clk 0:02:01.4]} 14... Na2+ {[%clk 0:01:55.9]} 15. Kb1
{[%clk 0:02:00.9]} 15... cxd4 {[%clk 0:01:54.5]} 16. Kxa2 {[%clk 0:01:52.6]}
16... Nxe4 {[%clk 0:01:45.4]} 17. Bxd4 {[%clk 0:01:38.5]} 17... Bxd4 {[%clk
0:01:45.2]} 18. Qxe4 {[%clk 0:01:38]} 18... Qa5+ {[%clk 0:01:45]} 19. Kb1 {[%clk
0:01:33.8]} 19... Bf6 {[%clk 0:01:30.1]} 20. Bd3 {[%clk 0:01:22]} 20... g6
{[%clk 0:01:30.4]} 21. h4 {[%clk 0:01:22]} 21... Rfe8 {[%clk 0:01:03]} 22. Qf3
{[%clk 0:01:12.2]} 22... Qe5 {[%clk 0:01:01.7]} 23. c3 {[%clk 0:01:06.5]} 23...
a5 {[%clk 0:00:54.5]} 24. h5 {[%clk 0:00:58.1]} 24... a4 {[%clk 0:00:49.9]} 25.
hxg6 {[%clk 0:00:52.2]} 25... hxg6 {[%clk 0:00:50.1]} 26. Rde1 {[%clk
0:00:38.5]} 26... Qxe1+ {[%clk 0:00:42.7]} 27. Rxe1 {[%clk 0:00:38.3]} 27...
Rxe1+ {[%clk 0:00:43.6]} 28. Kc2 {[%clk 0:00:37.3]} 28... axb3+ {[%clk
0:00:36.3]} 29. Kxb3 {[%clk 0:00:37.6]} 29... Kg7 {[%clk 0:00:22.1]} 30. Bc4
{[%clk 0:00:27.9]} 30... Re7 {[%clk 0:00:20.1]} 31. g4 {[%clk 0:00:27.1]} 31...
Rd8 {[%clk 0:00:19.7]} 32. Qg2 {[%clk 0:00:20.3]} 32... Bg5 {[%clk 0:00:18.6]}
33. Qg3 {[%clk 0:00:18.2]} 33... Bf6 {[%clk 0:00:11.6]} 34. f4 {[%clk
0:00:17.4]} 34... g5 {[%clk 0:00:11]} 35. fxg5 {[%clk 0:00:12.9]} 35... Bxg5
{[%clk 0:00:11.9]} 36. Qf3 {[%clk 0:00:10.3]} 36... Rd6 {[%clk 0:00:10.1]} 37.
Qf5 {[%clk 0:00:10.3]} 37... Rb6+ {[%clk 0:00:08]} 38. Kc2 {[%clk 0:00:07.7]}
38... Bf6 {[%clk 0:00:03.9]} 39. g5 {[%clk 0:00:07.3]} 39... Be5 {[%clk
0:00:04.2]} 40. g6 {[%clk 0:00:06.9]} 40... Rxg6 {[%clk 0:00:04]} 41. Bxf7
{[%clk 0:00:04.9]} 41... Rf6 {[%clk 0:00:03.3]} 42. Qg5+ {[%clk 0:00:02.3]}
42... Kxf7 {[%clk 0:00:04]} 43. Qh5+ {[%clk 0:00:02.8]} 43... Ke6 {[%clk
0:00:04.2]} 44. Qg4+ {[%clk 0:00:03.3]} 44... Kd6 {[%clk 0:00:04.6]} 45. Qb4+
{[%clk 0:00:03.9]} 45... Ke6 {[%clk 0:00:03.9]} 46. Qc4+ {[%clk 0:00:04.2]}
46... Kf5 {[%clk 0:00:03.6]} 47. Qd3+ {[%clk 0:00:04.5]} 47... Kg5 {[%clk
0:00:02.9]} 48. Qe3+ {[%clk 0:00:05]} 48... Rf4 {[%clk 0:00:02.9]} 49. Qg3+
{[%clk 0:00:04.8]} 49... Kf6 {[%clk 0:00:03.4]} 50. Qg8 {[%clk 0:00:03.2]} 50...
Rf2+ {[%clk 0:00:02.1]} 51. Kb3 {[%clk 0:00:03.3]} 51... Rf4 {[%clk 0:00:02.4]}
52. Qh8+ {[%clk 0:00:03.5]} 52... Ke6 {[%clk 0:00:02.4]} 53. Qc8+ {[%clk
0:00:03.4]} 53... Rd7 {[%clk 0:00:02.1]} 54. Qe8+ {[%clk 0:00:03.5]} 54... Kd6
{[%clk 0:00:02.7]} 55. Qb8+ {[%clk 0:00:03.7]} 55... Ke6 {[%clk 0:00:02.6]} 56.
Qe8+ {[%clk 0:00:03.9]} 56... Re7 {[%clk 0:00:03.3]} 57. Qc8+ {[%clk 0:00:04.3]}
57... Kf6 {[%clk 0:00:04]} 58. Qf8+ {[%clk 0:00:04.5]} 58... Rf7 {[%clk
0:00:04.5]} 59. Qh8+ {[%clk 0:00:04.5]} 59... Kf5 {[%clk 0:00:05.1]} 60. Qh5+
{[%clk 0:00:04.2]} 60... Ke6 {[%clk 0:00:05.5]} 61. Qg6+ {[%clk 0:00:03.2]}
61... R7f6 {[%clk 0:00:06]} 62. Qe8+ {[%clk 0:00:03.4]} 62... Kf5 {[%clk
0:00:06.6]} 63. Qd7+ {[%clk 0:00:03.7]} 63... Ke4 {[%clk 0:00:06.2]} 64. Qxb7+
{[%clk 0:00:04.1]} 64... Kf5 {[%clk 0:00:05.9]} 65. Qd7+ {[%clk 0:00:04.5]}
65... Kg5 {[%clk 0:00:06.4]} 66. Qg7+ {[%clk 0:00:04.7]} 66... Kh4 {[%clk
0:00:06.1]} 67. Qh7+ {[%clk 0:00:04.7]} 67... Kg3 {[%clk 0:00:05.9]} 68. Qd3+
{[%clk 0:00:05.1]} 68... Kg4 {[%clk 0:00:05.7]} 69. Qe2+ {[%clk 0:00:04.5]}
69... Kf5 {[%clk 0:00:06.4]} 70. Qh5+ {[%clk 0:00:04.8]} 70... Ke6 {[%clk
0:00:06.7]} 71. Qe8+ {[%clk 0:00:05.5]} 71... Kd5 {[%clk 0:00:07.2]} 72. Qb5+
{[%clk 0:00:05.7]} 72... Ke4 {[%clk 0:00:07.3]} 73. Qc6+ {[%clk 0:00:06.1]}
73... Ke3 {[%clk 0:00:06.6]} 74. Qc5+ {[%clk 0:00:04.8]} 74... Ke4 {[%clk
0:00:07.2]} 75. Qc4+ {[%clk 0:00:05.2]} 75... Kf5 {[%clk 0:00:07.7]} 76. Qd3+
{[%clk 0:00:05.9]} 76... Kg5 {[%clk 0:00:07.8]} 77. Qg3+ {[%clk 0:00:06]} 77...
Kf5 {[%clk 0:00:07.8]} 78. Qh3+ {[%clk 0:00:06.6]} 78... Rg4 {[%clk 0:00:06.8]}
79. Qf3+ {[%clk 0:00:06.7]} 79... Rf4 {[%clk 0:00:07.2]} 80. Qh3+ {[%clk
0:00:06.9]} 80... Ke4 {[%clk 0:00:07.4]} 81. Qg2+ {[%clk 0:00:05.6]} 81... Rf3
{[%clk 0:00:07.7]} 82. Qg4+ {[%clk 0:00:05.6]} 82... R6f4 {[%clk 0:00:08.2]} 83.
Qg6+ {[%clk 0:00:05.9]} 83... Ke3 {[%clk 0:00:08.7]} 84. Qb6+ {[%clk 0:00:05.1]}
84... Kd2 {[%clk 0:00:07.5]} 85. Qd8+ {[%clk 0:00:04.3]} 85... Ke2 {[%clk
0:00:06.8]} 86. Qe7 {[%clk 0:00:02.6]} 86... Re3 {[%clk 0:00:07.3]} 87. Qh7
{[%clk 0:00:01.9]} 87... Rff3 {[%clk 0:00:06.6]} 88. Qc2+ {[%clk 0:00:02.2]}
88... Kf1 {[%clk 0:00:06.8]} 89. Qd1+ {[%clk 0:00:02.4]} 89... Kf2 {[%clk
0:00:07.1]} 90. Qd2+ {[%clk 0:00:02.6]} 90... Re2 {[%clk 0:00:07.6]} 91. Qd5
{[%clk 0:00:02.6]} 91... Bf4 {[%clk 0:00:06.3]} 92. Qd4+ {[%clk 0:00:02.7]}
92... Be3 {[%clk 0:00:06.2]} 93. Qh4+ {[%clk 0:00:02.9]} 93... Kf1 {[%clk
0:00:06]} 94. Qh1+ {[%clk 0:00:03]} 94... Kf2 {[%clk 0:00:05.8]} 95. Qh2+ {[%clk
0:00:03.2]} 95... Ke1 {[%clk 0:00:06]} 96. Qh1+ {[%clk 0:00:03]} 96... Kd2
{[%clk 0:00:06.3]} 97. Qxf3 {[%clk 0:00:02.9]} 97... Bf2 {[%clk 0:00:03.7]} 98.
Qd5+ {[%clk 0:00:02]} 98... Ke1 {[%clk 0:00:03.5]} 99. c4 {[%clk 0:00:02.5]}
99... Re3+ {[%clk 0:00:03.6]} 100. Kb4 {[%clk 0:00:02.4]} 100... Ke2 {[%clk
0:00:03.5]} 101. c5 {[%clk 0:00:02]} 101... Rd3 {[%clk 0:00:02.5]} 102. Qe4+
{[%clk 0:00:01.5]} 102... Be3 {[%clk 0:00:02.6]} 103. c6 {[%clk 0:00:01.5]}
103... Rd4+ {[%clk 0:00:03.2]} 104. Qxd4 {[%clk 0:00:01.1]} 104... Bxd4 {[%clk
0:00:04.1]} 1/2-1/2

[Event "Late-Titled-Tuesday-Blitz-January-16-2024"]
[Site "Chess.com"]
[Date "2024.01.16"]
[Round "3"]
[White "Grischuk"]
[Black "alertakobra"]
[Result "1/2-1/2"]
[WhiteElo "3073"]
[BlackElo "2412"]
[TimeControl "180+1"]
[EndTime "14:30:17 PST"]
[Termination "Game drawn by 50-move rule"]

1. d4 {[%clk 0:02:40.2]} 1... Nf6 {[%clk 0:02:58.6]} 2. c4 {[%clk 0:02:39.7]}
2... g6 {[%clk 0:02:54]} 3. g3 {[%clk 0:02:39.9]} 3... Bg7 {[%clk 0:02:48.8]} 4.
Bg2 {[%clk 0:02:40]} 4... d5 {[%clk 0:02:49]} 5. Nf3 {[%clk 0:02:36.2]} 5... O-O
{[%clk 0:02:47.5]} 6. O-O {[%clk 0:02:35.9]} 6... dxc4 {[%clk 0:02:38.7]} 7. Na3
{[%clk 0:02:35.8]} 7... c3 {[%clk 0:02:36.7]} 8. bxc3 {[%clk 0:02:36.7]} 8... c5
{[%clk 0:02:36.4]} 9. Bb2 {[%clk 0:02:28.5]} 9... Nc6 {[%clk 0:02:31.4]} 10. Re1
{[%clk 0:02:28.3]} 10... Qb6 {[%clk 0:02:20.1]} 11. Nc4 {[%clk 0:02:18.1]} 11...
Qa6 {[%clk 0:02:20.1]} 12. Nfe5 {[%clk 0:02:13.8]} 12... Rd8 {[%clk 0:02:11.4]}
13. Nxc6 {[%clk 0:02:05.1]} 13... bxc6 {[%clk 0:02:11.1]} 14. Ne5 {[%clk
0:02:01.2]} 14... Nd5 {[%clk 0:01:59.6]} 15. Nd3 {[%clk 0:01:59.2]} 15... cxd4
{[%clk 0:01:54]} 16. cxd4 {[%clk 0:02:00.1]} 16... Rb8 {[%clk 0:01:47.1]} 17.
Qc1 {[%clk 0:01:58.7]} 17... Nb4 {[%clk 0:01:36.7]} 18. Nc5 {[%clk 0:01:52.1]}
18... Qb6 {[%clk 0:01:24.6]} 19. Rd1 {[%clk 0:01:35.8]} 19... Na6 {[%clk
0:01:17.9]} 20. Nb3 {[%clk 0:01:25.9]} 20... Be6 {[%clk 0:01:08.1]} 21. Qxc6
{[%clk 0:01:05.8]} 21... Qxc6 {[%clk 0:01:04.8]} 22. Bxc6 {[%clk 0:01:06.7]}
22... Nb4 {[%clk 0:01:05.1]} 23. Ba4 {[%clk 0:00:50.3]} 23... Nc2 {[%clk
0:00:54.1]} 24. Rac1 {[%clk 0:00:44.7]} 24... Bxb3 {[%clk 0:00:53.9]} 25. Bxb3
{[%clk 0:00:32.4]} 25... Nxd4 {[%clk 0:00:53.7]} 26. Bxd4 {[%clk 0:00:30.8]}
26... Bxd4 {[%clk 0:00:53]} 27. Kg2 {[%clk 0:00:29.5]} 27... Bb6 {[%clk
0:00:51.8]} 28. f4 {[%clk 0:00:29.6]} 28... e6 {[%clk 0:00:51.6]} 29. Kf3 {[%clk
0:00:29.2]} 29... Rxd1 {[%clk 0:00:51.2]} 30. Rxd1 {[%clk 0:00:30.1]} 30... Rd8
{[%clk 0:00:51.4]} 31. Rc1 {[%clk 0:00:29.4]} 31... Kf8 {[%clk 0:00:50.5]} 32.
g4 {[%clk 0:00:28]} 32... h6 {[%clk 0:00:48.7]} 33. h4 {[%clk 0:00:27.9]} 33...
Ke7 {[%clk 0:00:48.5]} 34. h5 {[%clk 0:00:18.7]} 34... gxh5 {[%clk 0:00:47.2]}
35. gxh5 {[%clk 0:00:19.6]} 35... Rg8 {[%clk 0:00:43.2]} 36. Rd1 {[%clk
0:00:18.1]} 36... Rg1 {[%clk 0:00:41.4]} 37. Rxg1 {[%clk 0:00:18.2]} 37... Bxg1
{[%clk 0:00:40.9]} 38. e3 {[%clk 0:00:19.1]} 38... e5 {[%clk 0:00:35.7]} 39.
fxe5 {[%clk 0:00:18.1]} 39... Bh2 {[%clk 0:00:35.6]} 40. Ke4 {[%clk 0:00:18.1]}
40... Bg3 {[%clk 0:00:34.4]} 41. Kf5 {[%clk 0:00:18.4]} 41... Bf2 {[%clk
0:00:33]} 42. e4 {[%clk 0:00:18.9]} 42... Be3 {[%clk 0:00:31.8]} 43. e6 {[%clk
0:00:18.9]} 43... fxe6+ {[%clk 0:00:31.6]} 44. Bxe6 {[%clk 0:00:19.8]} 44... Bd4
{[%clk 0:00:31.1]} 45. e5 {[%clk 0:00:19.5]} 45... Be3 {[%clk 0:00:30.9]} 46.
Bc4 {[%clk 0:00:19.7]} 46... Bd4 {[%clk 0:00:30.6]} 47. Ba6 {[%clk 0:00:19.6]}
47... Bb6 {[%clk 0:00:30.6]} 48. a4 {[%clk 0:00:19.8]} 48... Be3 {[%clk
0:00:30.5]} 49. Bc4 {[%clk 0:00:19.4]} 49... Bb6 {[%clk 0:00:30.4]} 50. Kg6
{[%clk 0:00:19]} 50... Be3 {[%clk 0:00:30.1]} 51. a5 {[%clk 0:00:18.6]} 51...
Bd2 {[%clk 0:00:30.1]} 52. a6 {[%clk 0:00:18.7]} 52... Bc1 {[%clk 0:00:30.4]}
53. Kf5 {[%clk 0:00:18.8]} 53... Bd2 {[%clk 0:00:30.7]} 54. Ke4 {[%clk
0:00:19.3]} 54... Bc1 {[%clk 0:00:31]} 55. Kd3 {[%clk 0:00:19.5]} 55... Bg5
{[%clk 0:00:30.8]} 56. Kd4 {[%clk 0:00:20]} 56... Bf4 {[%clk 0:00:30.2]} 57. Bb3
{[%clk 0:00:20.2]} 57... Bc1 {[%clk 0:00:29.3]} 58. Ke4 {[%clk 0:00:20.6]} 58...
Bg5 {[%clk 0:00:28.9]} 59. Kd5 {[%clk 0:00:21.5]} 59... Bc1 {[%clk 0:00:28.6]}
60. Kc6 {[%clk 0:00:22]} 60... Bd2 {[%clk 0:00:28.6]} 61. Kc7 {[%clk 0:00:21.5]}
61... Be3 {[%clk 0:00:28.5]} 62. Kb7 {[%clk 0:00:21.8]} 62... Bd4 {[%clk
0:00:27.8]} 63. Bc4 {[%clk 0:00:19.2]} 63... Bb6 {[%clk 0:00:21.6]} 64. Kc6
{[%clk 0:00:19]} 64... Bd4 {[%clk 0:00:21.5]} 65. Kd5 {[%clk 0:00:19.6]} 65...
Bb6 {[%clk 0:00:21.5]} 66. Ke4 {[%clk 0:00:20.1]} 66... Ba5 {[%clk 0:00:21.3]}
67. Ke3 {[%clk 0:00:19.9]} 67... Bb6+ {[%clk 0:00:21.3]} 68. Kf4 {[%clk
0:00:20.5]} 68... Ba5 {[%clk 0:00:21.6]} 69. Kf5 {[%clk 0:00:21.2]} 69... Bd2
{[%clk 0:00:21.7]} 70. Bd5 {[%clk 0:00:22.1]} 70... Be3 {[%clk 0:00:21.8]} 71.
Kg6 {[%clk 0:00:22.5]} 71... Bd2 {[%clk 0:00:21.8]} 72. Bb3 {[%clk 0:00:22.5]}
72... Be3 {[%clk 0:00:21.9]} 73. Ba2 {[%clk 0:00:23.1]} 73... Bd2 {[%clk
0:00:22.2]} 74. Kf5 {[%clk 0:00:24]} 74... Be3 {[%clk 0:00:22.3]} 75. Ke4 {[%clk
0:00:24.6]} 75... Bc1 {[%clk 0:00:22.4]} 76. Kd4 {[%clk 0:00:25.5]} 76... Bg5
{[%clk 0:00:21.9]} 77. Kc4 {[%clk 0:00:25.8]} 77... Be3 {[%clk 0:00:22]} 78. Kd3
{[%clk 0:00:26.2]} 78... Bb6 {[%clk 0:00:21]} 79. Ke4 {[%clk 0:00:26.5]} 79...
Ba5 {[%clk 0:00:21.1]} 80. Kf5 {[%clk 0:00:25.7]} 80... Bd2 {[%clk 0:00:21.1]}
81. Ke4 {[%clk 0:00:26.1]} 81... Bc1 {[%clk 0:00:21.5]} 82. Kd4 {[%clk
0:00:26.3]} 82... Bg5 {[%clk 0:00:21.9]} 83. Kd5 {[%clk 0:00:27.2]} 83... Bc1
{[%clk 0:00:22]} 84. Kc6 {[%clk 0:00:27.1]} 84... Be3 {[%clk 0:00:22.1]} 85. Kb7
{[%clk 0:00:27.7]} 85... Bd4 {[%clk 0:00:22.4]} 86. Kb8 {[%clk 0:00:27.4]} 86...
Bc5 {[%clk 0:00:22.4]} 87. Ka8 {[%clk 0:00:27.7]} 87... Bb6 {[%clk 0:00:22.6]}
88. Kb7 {[%clk 0:00:28.2]} 88... Bg1 {[%clk 0:00:22.6]} 89. Kc6 {[%clk
0:00:28.9]} 89... Bf2 {[%clk 0:00:23]} 90. Kd5 {[%clk 0:00:29.5]} 90... Be3
{[%clk 0:00:23.5]} 91. Ke4 {[%clk 0:00:30.4]} 91... Bg1 {[%clk 0:00:24]} 92. Kd3
{[%clk 0:00:31.3]} 92... Bf2 {[%clk 0:00:24.2]} 93. Ke2 {[%clk 0:00:30.9]} 93...
Bg1 {[%clk 0:00:24.5]} 94. Kf3 {[%clk 0:00:30.9]} 94... Bb6 {[%clk 0:00:25.3]}
95. Kf4 {[%clk 0:00:31.2]} 95... Bc5 {[%clk 0:00:26]} 96. Ke4 {[%clk 0:00:31.8]}
96... Bb6 {[%clk 0:00:26.3]} 97. Kf5 {[%clk 0:00:32.7]} 97... Bc5 {[%clk
0:00:26.5]} 98. e6 {[%clk 0:00:33.6]} 98... Be3 {[%clk 0:00:26.6]} 99. Kg6
{[%clk 0:00:34.5]} 99... Bd2 {[%clk 0:00:26.6]} 100. Kg7 {[%clk 0:00:35.4]}
100... Be3 {[%clk 0:00:26.9]} 101. Kh7 {[%clk 0:00:35.7]} 101... Bd2 {[%clk
0:00:27.2]} 102. Kg6 {[%clk 0:00:35.7]} 102... Bc1 {[%clk 0:00:27.6]} 103. Kf5
{[%clk 0:00:36.6]} 103... Bd2 {[%clk 0:00:28]} 104. Ke4 {[%clk 0:00:37.5]}
104... Bc1 {[%clk 0:00:28.3]} 105. Kd5 {[%clk 0:00:38.4]} 105... Bd2 {[%clk
0:00:28.5]} 106. Kc4 {[%clk 0:00:39.3]} 106... Be3 {[%clk 0:00:28.8]} 107. Kd3
{[%clk 0:00:40]} 107... Bb6 {[%clk 0:00:28.8]} 108. Ke4 {[%clk 0:00:40.5]}
108... Bg1 {[%clk 0:00:28.8]} 109. Kf4 {[%clk 0:00:41.1]} 109... Bb6 {[%clk
0:00:29.7]} 110. Kf5 {[%clk 0:00:41.7]} 110... Bg1 {[%clk 0:00:29.8]} 111. Ke4
{[%clk 0:00:42.6]} 111... Bb6 {[%clk 0:00:30]} 112. Kd5 {[%clk 0:00:43.5]}
112... Bg1 {[%clk 0:00:30.1]} 113. Ke5 {[%clk 0:00:44.4]} 113... Bb6 {[%clk
0:00:30.1]} 114. Kf5 {[%clk 0:00:45.3]} 114... Bg1 {[%clk 0:00:30.3]} 115. Ke4
{[%clk 0:00:46.2]} 115... Bb6 {[%clk 0:00:30.4]} 116. Bb3 {[%clk 0:00:47.1]}
116... Bg1 {[%clk 0:00:30.4]} 117. Ke5 {[%clk 0:00:48]} 117... Bb6 {[%clk
0:00:30.4]} 118. Kf5 {[%clk 0:00:48.9]} 118... Bg1 {[%clk 0:00:30.3]} 119. Kg6
{[%clk 0:00:49.8]} 119... Be3 {[%clk 0:00:30.6]} 120. Kg7 {[%clk 0:00:49.8]}
120... Bc1 {[%clk 0:00:30.8]} 121. Kh7 {[%clk 0:00:50.7]} 121... Bd2 {[%clk
0:00:31.2]} 122. Kg6 {[%clk 0:00:51.6]} 122... Be3 {[%clk 0:00:31.6]} 123. Kf5
{[%clk 0:00:52.1]} 123... Bc1 {[%clk 0:00:31.9]} 124. Ke5 {[%clk 0:00:52.7]}
124... Bd2 {[%clk 0:00:32.4]} 125. Ke4 {[%clk 0:00:53.1]} 125... Bc1 {[%clk
0:00:32.6]} 126. Kd4 {[%clk 0:00:53.7]} 126... Bd2 {[%clk 0:00:32.7]} 127. Kc5
{[%clk 0:00:54.3]} 127... Be3+ {[%clk 0:00:32.8]} 128. Kc6 {[%clk 0:00:54.9]}
128... Bb6 {[%clk 0:00:33.3]} 129. Kb7 {[%clk 0:00:55.3]} 129... Bg1 {[%clk
0:00:33.8]} 130. Kb8 {[%clk 0:00:55.9]} 130... Bb6 {[%clk 0:00:34.4]} 131. Ka8
{[%clk 0:00:56.8]} 131... Bg1 {[%clk 0:00:34.9]} 132. Kb7 {[%clk 0:00:57.7]}
132... Bb6 {[%clk 0:00:35.4]} 133. Bc4 {[%clk 0:00:58.2]} 133... Bg1 {[%clk
0:00:35.9]} 134. Kc6 {[%clk 0:00:59.1]} 134... Bb6 {[%clk 0:00:36.4]} 135. Kd5
{[%clk 0:01:00]} 135... Bg1 {[%clk 0:00:36.9]} 136. Ke5 {[%clk 0:01:00.9]}
136... Bb6 {[%clk 0:00:37.5]} 137. Kf5 {[%clk 0:01:01.8]} 137... Bg1 {[%clk
0:00:38]} 138. Kf4 {[%clk 0:01:02.3]} 138... Bb6 {[%clk 0:00:37.6]} 139. Ke4
{[%clk 0:01:03.2]} 139... Bg1 {[%clk 0:00:37.6]} 140. Kf5 {[%clk 0:01:04.1]}
140... Bb6 {[%clk 0:00:37.8]} 141. Kg6 {[%clk 0:01:05]} 141... Be3 {[%clk
0:00:37.9]} 142. Kg7 {[%clk 0:01:05.7]} 142... Bd2 {[%clk 0:00:38.1]} 143. Kh7
{[%clk 0:01:06.6]} 143... Bc1 {[%clk 0:00:38.6]} 144. Kg6 {[%clk 0:01:07]}
144... Bd2 {[%clk 0:00:39]} 145. Kf5 {[%clk 0:01:07.9]} 145... Be3 {[%clk
0:00:39.2]} 146. Ke4 {[%clk 0:01:08.8]} 146... Bg1 {[%clk 0:00:39.2]} 147. Kd5
{[%clk 0:01:09.7]} 147... Bb6 {[%clk 0:00:39.3]} 148. Ke5 {[%clk 0:01:10.6]}
1/2-1/2

[Event "Late-Titled-Tuesday-Blitz-January-16-2024"]
[Site "Chess.com"]
[Date "2024.01.16"]
[Round "4"]
[White "IMRosen"]
[Black "ozen_metehan"]
[Result "1-0"]
[WhiteElo "2674"]
[BlackElo "2447"]
[TimeControl "180+1"]
[EndTime "14:32:41 PST"]
[Termination "IMRosen won by resignation"]

1. d4 {[%clk 0:02:54.4]} 1... d5 {[%clk 0:02:52.3]} 2. Bf4 {[%clk 0:02:54]} 2...
c5 {[%clk 0:02:45.7]} 3. Nc3 {[%clk 0:02:53.7]} 3... e6 {[%clk 0:02:39.4]} 4. e4
{[%clk 0:02:53.1]} 4... cxd4 {[%clk 0:02:31.4]} 5. Qxd4 {[%clk 0:02:54]} 5...
Nc6 {[%clk 0:02:30.8]} 6. Bb5 {[%clk 0:02:53.2]} 6... Nf6 {[%clk 0:02:26.3]} 7.
exd5 {[%clk 0:02:50.4]} 7... exd5 {[%clk 0:02:25.6]} 8. O-O-O {[%clk 0:02:33.9]}
8... Be7 {[%clk 0:02:13]} 9. Nxd5 {[%clk 0:02:30.5]} 9... Nxd5 {[%clk 0:02:12]}
10. Qxd5 {[%clk 0:02:30.6]} 10... Be6 {[%clk 0:02:12.6]} 11. Bxc6+ {[%clk
0:02:15.7]} 1-0

[Event "Late-Titled-Tuesday-Blitz-January-16-2024"]
[Site "Chess.com"]
[Date "2024.01.16"]
[Round "4"]
[White "Viktor_Poddubnyi"]
[Black "katharinareinecke"]
[Result "1-0"]
[WhiteElo "2260"]
[BlackElo "2030"]
[TimeControl "180+1"]
[EndTime "14:33:07 PST"]
[Termination "Viktor_Poddubnyi won by resignation"]

1. e4 {[%clk 0:02:59.6]} 1... c6 {[%clk 0:02:57.7]} 2. d4 {[%clk 0:02:59.3]}
2... d5 {[%clk 0:02:57.1]} 3. exd5 {[%clk 0:03:00.2]} 3... cxd5 {[%clk
0:02:56.9]} 4. c4 {[%clk 0:03:00.8]} 4... Nf6 {[%clk 0:02:55.5]} 5. Nc3 {[%clk
0:03:01.3]} 5... Be6 {[%clk 0:02:55.2]} 6. a3 {[%clk 0:03:00.6]} 6... dxc4
{[%clk 0:02:46.3]} 7. Bg5 {[%clk 0:02:59.6]} 7... h6 {[%clk 0:02:41.8]} 8. Bxf6
{[%clk 0:02:57.3]} 8... exf6 {[%clk 0:02:41.7]} 9. d5 {[%clk 0:02:57.2]} 9...
Bd7 {[%clk 0:02:25.9]} 10. Bxc4 {[%clk 0:02:57.2]} 10... Be7 {[%clk 0:02:18.2]}
11. Nge2 {[%clk 0:02:57.1]} 11... O-O {[%clk 0:02:18.2]} 12. d6 {[%clk
0:02:51.5]} 12... Re8 {[%clk 0:02:05.1]} 13. dxe7 {[%clk 0:02:49.8]} 13... Rxe7
{[%clk 0:02:01.4]} 14. O-O {[%clk 0:02:49.8]} 14... a6 {[%clk 0:02:00.6]} 15.
Ng3 {[%clk 0:02:41.6]} 15... b5 {[%clk 0:01:58.6]} 16. Bd5 {[%clk 0:02:40.3]}
16... Ra7 {[%clk 0:01:57.7]} 17. Re1 {[%clk 0:02:39.9]} 17... Be6 {[%clk
0:01:53.8]} 18. Bxe6 {[%clk 0:02:38.2]} 18... Qxd1 {[%clk 0:01:52.7]} 19. Bxf7+
{[%clk 0:02:37.8]} 19... Kxf7 {[%clk 0:01:53]} 20. Raxd1 {[%clk 0:02:31.4]} 1-0

[Event "Late-Titled-Tuesday-Blitz-January-16-2024"]
[Site "Chess.com"]
[Date "2024.01.16"]
[Round "4"]
[White "GAusal"]
[Black "Trovita84"]
[Result "0-1"]
[WhiteElo "2271"]
[BlackElo "2114"]
[TimeControl "180+1"]
[EndTime "14:33:34 PST"]
[Termination "Trovita84 won by checkmate"]

1. d4 {[%clk 0:03:00.9]} 1... Nf6 {[%clk 0:02:55.3]} 2. Nf3 {[%clk 0:03:00.7]}
2... d5 {[%clk 0:02:52.8]} 3. Bf4 {[%clk 0:02:59.5]} 3... c5 {[%clk 0:02:53.2]}
4. e3 {[%clk 0:02:59.7]} 4... Nc6 {[%clk 0:02:51.1]} 5. c3 {[%clk 0:02:59.8]}
5... Qb6 {[%clk 0:02:49.3]} 6. b3 {[%clk 0:02:58.2]} 6... cxd4 {[%clk
0:02:40.5]} 7. exd4 {[%clk 0:02:57.7]} 7... Bf5 {[%clk 0:02:39.9]} 8. Nbd2
{[%clk 0:02:56.3]} 8... e5 {[%clk 0:02:39.8]} 9. dxe5 {[%clk 0:02:55.5]} 9...
Ne4 {[%clk 0:02:35.1]} 10. Nxe4 {[%clk 0:02:48.3]} 10... dxe4 {[%clk 0:02:36]}
11. Nd4 {[%clk 0:02:47.4]} 11... Nxd4 {[%clk 0:02:31.4]} 12. cxd4 {[%clk
0:02:46.9]} 12... Rd8 {[%clk 0:02:32.3]} 13. Be3 {[%clk 0:02:45]} 13... Bb4+
{[%clk 0:02:28.3]} 14. Bd2 {[%clk 0:02:06.9]} 14... Rxd4 {[%clk 0:02:26.4]} 15.
Bc4 {[%clk 0:01:37]} 15... Rxd2 {[%clk 0:02:20.4]} 16. Qh5 {[%clk 0:01:26.8]}
16... Qxf2# {[%clk 0:02:17]} 0-1

[Event "Late-Titled-Tuesday-Blitz-January-16-2024"]
[Site "Chess.com"]
[Date "2024.01.16"]
[Round "4"]
[White "GMAkobianSTL"]
[Black "Mikhail_Golubev"]
[Result "1-0"]
[WhiteElo "2704"]
[BlackElo "2532"]
[TimeControl "180+1"]
[EndTime "14:33:42 PST"]
[Termination "GMAkobianSTL won by resignation"]

1. d4 {[%clk 0:03:00.9]} 1... Nf6 {[%clk 0:02:59.6]} 2. c4 {[%clk 0:03:00.8]}
2... g6 {[%clk 0:02:59.7]} 3. Nc3 {[%clk 0:03:00.1]} 3... Bg7 {[%clk 0:02:59.9]}
4. Nf3 {[%clk 0:03:00.5]} 4... d6 {[%clk 0:02:59.7]} 5. Bg5 {[%clk 0:03:00.3]}
5... O-O {[%clk 0:02:58.6]} 6. e3 {[%clk 0:03:00.1]} 6... c5 {[%clk 0:02:55.3]}
7. d5 {[%clk 0:02:59.7]} 7... e6 {[%clk 0:02:46.5]} 8. Nd2 {[%clk 0:02:58.5]}
8... h6 {[%clk 0:02:41.6]} 9. Bh4 {[%clk 0:02:58.2]} 9... exd5 {[%clk
0:02:41.3]} 10. cxd5 {[%clk 0:02:58]} 10... Re8 {[%clk 0:02:27.8]} 11. Be2
{[%clk 0:02:57.1]} 11... Na6 {[%clk 0:02:22.3]} 12. O-O {[%clk 0:02:56]} 12...
Nc7 {[%clk 0:02:21.7]} 13. e4 {[%clk 0:02:56.4]} 13... a6 {[%clk 0:02:08.3]} 14.
a4 {[%clk 0:02:55.5]} 14... Rb8 {[%clk 0:01:59.5]} 15. a5 {[%clk 0:02:53.7]}
15... Bd7 {[%clk 0:01:55.7]} 16. Nc4 {[%clk 0:02:52.7]} 16... Nb5 {[%clk
0:01:51.9]} 17. Nxb5 {[%clk 0:02:48.8]} 17... Bxb5 {[%clk 0:01:50.4]} 18. f3
{[%clk 0:02:47.8]} 18... g5 {[%clk 0:01:33.4]} 19. Bf2 {[%clk 0:02:45]} 19...
Nh5 {[%clk 0:01:26.2]} 20. g3 {[%clk 0:02:26.8]} 20... Bxb2 {[%clk 0:01:23.5]}
21. Nxb2 {[%clk 0:02:24.6]} 1-0